Cogmind - Beta 15 @@@ ROGUE MODE // 2025.06.15 @ 09:02:44 Player: quak Result: Destroyed by H-81 Overseer with Heavy Linear Accelerator Performance ------------- Evolutions (8) 4000 Regions Visited (17) 3400 Robots Destroyed (78) 390 Value Destroyed (1454) 1454 Prototype IDs (10) 200 Alien Tech Used (0) 0 Bonus (0) 0 TOTAL SCORE: 9444 Bonus ------- None Cogmind --------- Core Integrity 0/1450 Matter 0/300 Energy 100/100 System Corruption 7% Temperature Cool (1) Movement Flying (35) Location -2/Research Parts ------- > --- POWER (2) -------- (None) > --- PROPULSION (8) --- Cooled Nuclear Pulse Thruster > --- UTILITY (11) ----- Hacking Suite > --- WEAPON (2) ------- (None) > --- INVENTORY (5) ---- Improved Fusion Compressor Improved Launcher Guidance Computer Micro-nuke Launcher Peak State ------------ > --- POWER ------------ Light Antimatter Reactor Improved Fusion Compressor > --- PROPULSION ------- Cooled VTOL Module Cooled Cesium-ion Thruster Field Propulsion Drive Field Propulsion Drive Impulse Thruster Field Propulsion Array > --- UTILITY ---------- Graphene Brace Hacking Suite Hacking Suite Hacking Suite Improved Hacking Suite Advanced System Shield > --- WEAPON ----------- (None) > --- INVENTORY -------- Q-thruster Hacking Suite Hacking Suite Heavy Proton Missile Launcher Rocket Launcher [Rating: 87] Favorites ----------- Power Light Deuterium Engine Engine Light Deuterium Engine Power Core Light Nuclear Core Reactor Light Antimatter Reactor Propulsion Light Treads Treads Light Treads Wheel Wheel Flight Unit Cooled VTOL Module Utility Hacking Suite Device Improved Heat Sink Storage Large Storage Unit Processor Advanced Visual Processing Unit Hackware Hacking Suite Protection Hardened Medium Armor Plating Weapon Rocket Launcher Energy Gun Heavy Particle Gun Energy Cannon Particle Cannon Ballistic Gun Assault Rifle Ballistic Cannon Light Cannon Launcher Rocket Launcher Build | -11 -10 -10 -9 -9 -8 -7 -7 -7 -6 -5 -5 -5 -5 -5 -4 -3 -2 ------- Run | Yrd Mat Min Mat Min Mat Fac Was Fac Fac Fac Was Fac Upp Upp Fac Res Res Slots Evolved 16 | . . . 2 . 2 2 . . 2 2 . . . . 2 2 2 Power 1 | . . . . . . . . . . . . . . . . 1 . Propulsion 6 | . . . . . . 2 . . 1 1 . . . . 1 . 1 Utility 9 | . . . 2 . 2 . . . 1 1 . . . . 1 1 1 Weapon . | . . . . . . . . . . . . . . . . . . Parts Attached 90 | 5 9 . 16 3 9 7 1 6 4 6 . 9 . . 11 3 1 Power 13 | 1 1 . 3 . 2 . . 1 . . . 2 . . 2 1 . Engine 7 | 1 1 . 3 . 1 . . 1 . . . . . . . . . Core 4 | . . . . . 1 . . . . . . 2 . . . 1 . Reactor 2 | . . . . . . . . . . . . . . . 2 . . Propulsion 30 | 2 1 . 2 3 1 2 1 2 2 2 . 3 . . 6 2 1 Treads 4 | 2 1 . 1 . . . . . . . . . . . . . . Leg . | . . . . . . . . . . . . . . . . . . Wheel 2 | . . . 1 1 . . . . . . . . . . . . . Hover . | . . . . . . . . . . . . . . . . . . Flight 24 | . . . . 2 1 2 1 2 2 2 . 3 . . 6 2 1 Utility 26 | . 5 . 3 . 4 3 . 1 2 2 . 4 . . 2 . . Device 9 | . . . 1 . 1 1 . . 2 2 . 1 . . 1 . . Storage 4 | . 4 . . . . . . . . . . . . . . . . Processor 1 | . . . . . . 1 . . . . . . . . . . . Hackware 8 | . 1 . . . 1 1 . 1 . . . 3 . . 1 . . Protection 4 | . . . 2 . 2 . . . . . . . . . . . . Artifact . | . . . . . . . . . . . . . . . . . . Weapon 21 | 2 2 . 8 . 2 2 . 2 . 2 . . . . 1 . . Energy Gun 7 | . . . 4 . 2 . . 1 . . . . . . . . . Energy Cannon 1 | . . . 1 . . . . . . . . . . . . . . Ballistic Gun 4 | 2 . . 2 . . . . . . . . . . . . . . Ballistic Cannon 1 | . 1 . . . . . . . . . . . . . . . . Launcher 8 | . 1 . 1 . . 2 . 1 . 2 . . . . 1 . . Special Weapon . | . . . . . . . . . . . . . . . . . . Impact Weapon . | . . . . . . . . . . . . . . . . . . Slashing Weapon . | . . . . . . . . . . . . . . . . . . Piercing Weapon . | . . . . . . . . . . . . . . . . . . Special Melee Weapon . | . . . . . . . . . . . . . . . . . . Unidentified Prototypes 9 | . . . 2 . 1 . . 2 1 . . . . . 2 1 . Parts Lost 56 | . 1 . 14 1 7 1 . . 1 1 . 9 1 1 7 8 4 Power 8 | . 1 . 3 . 2 . . . . . . 1 . . 1 . . Propulsion 23 | . . . 4 . 1 1 . . 1 . . 4 . 1 4 6 1 Utility 15 | . . . 1 1 3 . . . . . . 2 1 . 2 2 3 Weapon 10 | . . . 6 . 1 . . . . 1 . 2 . . . . . Highest Loss Streak 9 | . 1 . 8 1 6 1 . . 1 1 . 9 1 2 3 4 2 To Critical Strikes 1 | . . . . . . . . . . . . 1 . . . . . Average Backups 7 | . 4 10 12 8 11 4 5 4 4 3 2 3 1 1 3 4 3 Power . | . . 2 1 1 . . . . . . . . . . . . 1 Propulsion . | . . . . . 2 . . 1 2 1 1 2 . . . 3 1 Utility 2 | . 2 3 5 5 3 2 3 1 . . . . . . . . . Weapon 2 | . 1 5 4 1 3 . 1 1 2 2 1 1 1 1 1 . . Tool/Special . | . . . . . . . . . . . . . . . . . . Unused Backups 15 | . . . 2 . 2 . . 3 1 1 . 1 . . . 3 2 Power 2 | . . . 2 . . . . . . . . . . . . . . Propulsion 5 | . . . . . 1 . . . 1 1 . 1 . . . 1 . Utility 5 | . . . . . . . . 2 . . . . . . . 2 1 Weapon 2 | . . . . . 1 . . . . . . . . . . . 1 Tool/Special 1 | . . . . . . . . 1 . . . . . . . . . Average Slot Usage (%) 74 | . 78 100 88 53 77 76 84 85 90 79 100 91 75 65 57 37 13 Engine 5 | . 13 14 9 . . . . 1 6 5 5 2 . . . . . Treads 8 | . 25 28 13 . . . . . . . . . . . . . . Wheel 1 | . . . 1 2 8 . . . . . . . . . . . . Flight 8 | . . . . 3 . 21 23 23 26 29 35 33 29 24 23 11 2 Device 5 | . . . 11 1 3 14 15 8 10 5 17 11 4 . . 4 2 Storage 5 | . 3 14 11 11 8 . . . . . . . . . . . . Processor 1 | . . . . . . 6 7 7 6 5 5 2 . . . . . Hackware 15 | . 6 14 11 11 12 20 23 29 26 23 23 29 35 35 27 19 8 Protection 5 | . . . 9 11 22 . . . . . . . . . . . . Energy Gun 3 | . . . 6 . 15 6 . 2 . . . . . . . . . Ballistic Gun 6 | . 17 14 11 11 1 . . . . . . . . . . . . Ballistic Cannon 2 | . 10 14 2 . . . . . . . . . . . . . . Launcher 2 | . . . . 1 . 5 15 11 13 8 11 8 . . . . . Peak Build Rating 87 | 5 10 11 27 20 30 37 43 48 59 62 64 71 55 52 80 87 21 Average Rating 27 | 4 6 10 24 12 25 32 42 45 56 50 63 62 54 48 59 48 17 On Entrance 34 | . 5 10 11 20 12 21 35 43 48 42 62 64 55 52 48 80 20 Naked Turns . | . . . . . . . . . . . . . . . . . . Heaviest Build 56 | 6 28 28 54 46 56 10 10 14 17 16 16 17 6 5 21 20 1 Greatest Support 47 | 40 40 40 40 10 10 17 25 25 29 35 35 37 28 28 47 47 18 Greatest Overweight (x) 18 | . . . 17 15 18 . . 2 . . . . . . . . . Average Overweight (x) . | . . . 2 5 4 . . . . . . . . . . . . Largest Inventory Capacity 25 | 5 25 15 15 15 15 5 5 5 5 5 5 5 5 5 5 5 5 Average Capacity 9 | 5 7 15 15 15 14 5 5 5 5 5 5 5 5 5 5 5 5 Most Carried 15 | . 10 11 15 11 13 5 5 5 5 5 5 5 1 1 5 5 5 Average Carried 7 | . 4 10 12 8 11 4 5 4 4 3 3 3 1 1 3 4 3 Final Capacity 15 | 5 15 15 15 15 5 5 5 5 5 5 5 5 5 5 5 5 5 Final Carried 11 | . 10 11 7 11 5 5 5 5 5 2 5 1 1 1 5 3 3 Class Distribution -------------------- 59% | Mutant 17% | Hacker-Sprinter 15% | Hacker-Mutant 6% | Wizard-Sprinter Dominant Class ---------------- Mutant | -10/Materials Mutant | -10/Mines Mutant | -9/Materials Mutant | -9/Mines Mutant | -8/Materials Hacker-Mutant | -7/Factory Hacker-Mutant | -7/Waste Hacker-Mutant | -7/Factory Hacker-Sprinter | -6/Factory Hacker-Sprinter | -5/Factory Hacker-Sprinter | -5/Waste Hacker-Sprinter | -5/Factory Wizard-Sprinter | -5/Upper Caves Wizard-Sprinter | -5/Upper Caves Hacker-Sprinter | -4/Factory Hacker-Mutant | -3/Research Hacker-Mutant | -2/Research Resources | -11 -10 -10 -9 -9 -8 -7 -7 -7 -6 -5 -5 -5 -5 -5 -4 -3 -2 ----------- Run | Yrd Mat Min Mat Min Mat Fac Was Fac Fac Fac Was Fac Upp Upp Fac Res Res Matter Collected 1677 | 223 312 . 548 108 313 . . 58 . . . . 23 75 15 2 . Remotely 131 | . . . . . 131 . . . . . . . . . . . . Salvage Created 2208 | 109 334 . 1159 69 313 . . 165 . . . . . . 59 . . Parts 162 | 13 33 . 76 7 24 . . 7 . . . . . . 2 . . Haulers Intercepted 5 | . 2 . 2 . 1 . . . . . . . . . . . . Recyclers Shooed 3 | . . . 3 . . . . . . . . . . . . . . Parts Field Recycled . | . . . . . . . . . . . . . . . . . . Retrieved Matter . | . . . . . . . . . . . . . . . . . . Parts Self-Destructed 5 | . . . . . . . . . . . . . 5 . . . . Prevented . | . . . . . . . . . . . . . . . . . . Kills | -11 -10 -10 -9 -9 -8 -7 -7 -7 -6 -5 -5 -5 -5 -5 -4 -3 -2 ------- Run | Yrd Mat Min Mat Min Mat Fac Was Fac Fac Fac Was Fac Upp Upp Fac Res Res Combat Hostiles Destroyed 43 | . 12 . 23 . 6 . . . . . . . . . 2 . . Guns 25 | . 6 . 13 . 6 . . . . . . . . . . . . Cannons 6 | . 2 . 4 . . . . . . . . . . . . . . AOE 10 | . 4 . 4 . . . . . . . . . . . 2 . . Classes Destroyed 11 | 1 5 . 4 . 1 . . . . . . . . . . . . Worker 10 | . . . 2 4 . . . 4 . . . . . . . . . Builder 2 | . . . 2 . . . . . . . . . . . . . . Tunneler 6 | 5 . . . 1 . . . . . . . . . . . . . Hauler 5 | . 2 . 2 . 1 . . . . . . . . . . . . Recycler 5 | . . . 3 . . . . 2 . . . . . . . . . Mechanic 1 | . . . . . 1 . . . . . . . . . . . . Operator 3 | . 1 . 1 . 1 . . . . . . . . . . . . Watcher 3 | . 2 . . . 1 . . . . . . . . . . . . Swarmer 23 | . 9 . 8 . 4 . . . . . . . . . 2 . . Grunt 14 | . 3 . 9 . 2 . . . . . . . . . . . . Sentry 6 | . . . 6 . . . . . . . . . . . . . . Best Kill Streak 7 | 5 7 . 6 2 3 . . 3 . . . . . . 2 . . Combat Bots Only 7 | . 7 . 6 . 3 . . . . . . . . . 2 . . Max Kills in Single Turn 3 | 1 2 . 2 1 2 . . 3 . . . . . . 1 . . Gunslinging . | . . . . . . . . . . . . . . . . . . Exploded 2 | . 2 . 2 . . . . . . . . . . . 1 . . Melee . | . . . . . . . . . . . . . . . . . . Uniques/NPCs Destroyed . | . . . . . . . . . . . . . . . . . . Combat | -11 -10 -10 -9 -9 -8 -7 -7 -7 -6 -5 -5 -5 -5 -5 -4 -3 -2 -------- Run | Yrd Mat Min Mat Min Mat Fac Was Fac Fac Fac Was Fac Upp Upp Fac Res Res Hostile Shots Fired 1042 | . 97 . 268 . 145 22 . 37 6 9 . 78 26 6 62 149 137 Missed 441 | . 28 . 87 . 33 15 . 22 2 6 . 36 19 2 39 78 74 Hits 601 | . 69 . 181 . 112 7 . 15 4 3 . 42 7 4 23 71 63 Projectile 601 | . 69 . 181 . 112 7 . 15 4 3 . 42 7 4 23 71 63 Critical Strikes 23 | . . . 7 . 2 . . . . . . 1 1 . 1 5 6 Actively Blocked 10 | . . . . . . . . . . . . . . . . 5 5 Damage Taken 9328 | . 605 . 2046 49 1380 107 . 152 68 107 . 683 142 76 677 1545 1691 Core 4030 | . 157 . 285 . 339 30 . . 15 16 . 197 93 35 269 1120 1474 Absorbed by Shields . | . . . . . . . . . . . . . . . . . . Regen/Repaired (Parts) 113 | . 113 . . . . . . . . . . . . . . . . Core Remaining (%) 61 | 100 . 37 . 28 38 . . 95 98 . . . . 65 76 13 . Volleys Fired 197 | 9 42 . 79 26 31 1 . 7 . . . . . . 2 . . Largest 2 | 2 2 . 2 2 2 2 . 1 . . . . . . 1 . . Hottest 110 | 40 60 . 90 53 110 110 . 55 . . . . . . 40 . . Shots Fired 340 | 18 84 . 147 30 51 2 . 6 . . . . . . 2 . . Gun 276 | 18 56 . 117 26 51 2 . 6 . . . . . . . . . Cannon 48 | . 23 . 25 . . . . . . . . . . . . . . Launcher 16 | . 5 . 5 4 . . . . . . . . . . 2 . . Special . | . . . . . . . . . . . . . . . . . . Kinetic 222 | 18 79 . 89 26 10 . . . . . . . . . . . . Thermal 43 | . . . . . 41 2 . . . . . . . . . . . Explosive 14 | . 5 . 5 4 . . . . . . . . . . . . . Electromagnetic 61 | . . . 53 . . . . 6 . . . . . . 2 . . Robot Hit Streak 12 | 5 9 . 9 5 11 12 . 5 . . . . . . . . . Robot Miss Streak 6 | 1 6 . 6 5 5 1 . . . . . . . . 1 . . Penetration Max . | . . . . . . . . . . . . . . . . . . Secondary Targets 5 | . 3 . . . 2 . . . . . . . . . . . . Max Gunslinging Chain 1 | . 1 . . . 1 . . . . . . . . . . . . Shots Hit Robots 197 | 10 44 . 93 16 28 1 . 5 . . . . . . . . . Core Hits 118 | 7 27 . 55 6 14 . . 6 . . . . . . 3 . . Critical Kills . | . . . . . . . . . . . . . . . . . . Critical Parts Destroyed . | . . . . . . . . . . . . . . . . . . Critical Strikes 2 | . . . 1 . 1 . . . . . . . . . . . . Burn 1 | . . . . . 1 . . . . . . . . . . . . Blast 1 | . . . 1 . . . . . . . . . . . . . . Melee Attacks . | . . . . . . . . . . . . . . . . . . Impact . | . . . . . . . . . . . . . . . . . . Slashing . | . . . . . . . . . . . . . . . . . . Piercing . | . . . . . . . . . . . . . . . . . . Sneak Attacks . | . . . . . . . . . . . . . . . . . . Combat Hostiles . | . . . . . . . . . . . . . . . . . . Follow-up Attacks . | . . . . . . . . . . . . . . . . . . Damage Inflicted 4548 | 106 778 . 2041 371 539 16 . 510 . . . . . . 176 . 11 Guns 2450 | 106 347 . 1141 196 539 16 . 105 . . . . . . . . . Cannons 563 | . 256 . 307 . . . . . . . . . . . . . . Explosions 1524 | . 175 . 593 175 . . . 405 . . . . . . 176 . . Melee . | . . . . . . . . . . . . . . . . . . Ramming 11 | . . . . . . . . . . . . . . . . . 11 Kinetic 1766 | 106 603 . 778 196 83 . . . . . . . . . . . . Thermal 1033 | . . . 156 . 456 16 . 405 . . . . . . . . . Explosive 787 | . 175 . 437 175 . . . . . . . . . . . . . Electromagnetic 951 | . . . 670 . . . . 105 . . . . . . 176 . . Impact . | . . . . . . . . . . . . . . . . . . Slashing . | . . . . . . . . . . . . . . . . . . Piercing . | . . . . . . . . . . . . . . . . . . Highest Corruption 12 | . . . 4 4 . . 9 12 1 . . . . . 1 3 7 Average Corruption 4 | . . . 4 4 . . 9 9 1 . . . . . 1 1 5 Corruption Purged . | . . . . . . . . . . . . . . . . . . Corruption Blocked . | . . . . . . . . . . . . . . . . . . Effects 52 | . . . 13 12 . . 1 18 . . . . . . . 3 5 Message Errors 13 | . . . 1 3 . . . 7 . . . . . . . . 2 Matter Fused 16 | . . . 3 4 . . 1 4 . . . . . . . 1 3 Heat Flow Errors 3 | . . . 1 1 . . . . . . . . . . . 1 . Energy Discharges 5 | . . . 1 1 . . . 3 . . . . . . . . . Data Loss (minor) 6 | . . . 3 1 . . . 2 . . . . . . . . . Data Loss (major) 3 | . . . . 2 . . . . . . . . . . . 1 . Misfires 1 | . . . 1 . . . . . . . . . . . . . . Misdirections 1 | . . . . . . . . 1 . . . . . . . . . Weapon Failures 4 | . . . 3 . . . . 1 . . . . . . . . . Overload Shots . | . . . . . . . . . . . . . . . . . . Overflow Damage 45 | . 4 . 5 3 . . . 33 . . . . . . . . . Projectiles 4 | . 4 . . . . . . . . . . . . . . . . Explosions 41 | . . . 5 3 . . . 33 . . . . . . . . . Melee . | . . . . . . . . . . . . . . . . . . Knockbacks 6 | . 5 . 1 . . . . . . . . . . . . . . Impact . | . . . . . . . . . . . . . . . . . . Kinetic 6 | . 5 . 1 . . . . . . . . . . . . . . Secondary . | . . . . . . . . . . . . . . . . . . Self-Inflicted Damage 241 | . 28 . 159 49 . . . . . . . . . . . . 5 Shots 8 | . 2 . 5 1 . . . . . . . . . . . . . Rammed 3 | . . . . . . . . . . . . . . . . . 3 Targets Rammed 3 | . . . . . . . . . . . . . . . . . 3 Kicked . | . . . . . . . . . . . . . . . . . . Crushed . | . . . . . . . . . . . . . . . . . . Highest Temperature 542 | . 6 . 217 218 542 1 . . . . . 52 29 . 5 138 . Average Temperature 111 | . 6 . 43 60 207 1 . . . . . 31 13 . 4 57 . Received Heat Transfer 1210 | . 54 . 513 . 396 63 . 18 18 . . 27 46 . 9 57 9 Effects 10 | . . . . . 10 . . . . . . . . . . . . Shutdowns 3 | . . . . . 3 . . . . . . . . . . . . Energy Bleed 1 | . . . . . 1 . . . . . . . . . . . . Interference 1 | . . . . . 1 . . . . . . . . . . . . Matter Decay 2 | . . . . . 2 . . . . . . . . . . . . Damage (minor) 1 | . . . . . 1 . . . . . . . . . . . . Damage (core) 2 | . . . . . 2 . . . . . . . . . . . . Siege Activations . | . . . . . . . . . . . . . . . . . . Martial Activations . | . . . . . . . . . . . . . . . . . . Shielding Activations . | . . . . . . . . . . . . . . . . . . Robots Disrupted 1 | . . . 1 . . . . . . . . . . . . . . Combat Hostiles 1 | . . . 1 . . . . . . . . . . . . . . Robots Corrupted 2 | . . . 2 . . . . . . . . . . . . . . Combat Hostiles 2 | . . . 2 . . . . . . . . . . . . . . Parts Fried 3 | . . . 3 . . . . . . . . . . . . . . Impact Corruptions . | . . . . . . . . . . . . . . . . . . Robots Melted . | . . . . . . . . . . . . . . . . . . Combat Hostiles . | . . . . . . . . . . . . . . . . . . Parts Melted 1 | . . . . . 1 . . . . . . . . . . . . Heat Transferred 1499 | . . . 200 . 962 37 . 300 . . . . . . . . . Parts Sabotaged . | . . . . . . . . . . . . . . . . . . Parts Stolen . | . . . . . . . . . . . . . . . . . . Parts Stripped . | . . . . . . . . . . . . . . . . . . Power Chain Reactions 3 | . . . 3 . . . . . . . . . . . . . . Alert | -11 -10 -10 -9 -9 -8 -7 -7 -7 -6 -5 -5 -5 -5 -5 -4 -3 -2 ------- Run | Yrd Mat Min Mat Min Mat Fac Was Fac Fac Fac Was Fac Upp Upp Fac Res Res Maximum Alert Level 2 | . 1 . 1 . . . . 1 . . . 1 . . 1 . 2 Low Security (%) 91 | 100 93 100 92 100 100 100 100 79 100 100 100 93 . . 52 100 39 Level 1 8 | . 6 . 7 . . . . 20 . . . 6 . . 47 . 48 Level 2 . | . . . . . . . . . . . . . . . . . 11 Level 3 . | . . . . . . . . . . . . . . . . . . Level 4 . | . . . . . . . . . . . . . . . . . . Level 5 . | . . . . . . . . . . . . . . . . . . High Security . | . . . . . . . . . . . . . . . . . . Max Security . | . . . . . . . . . . . . . . . . . . Peak Influence 502 | 10 228 . 265 101 77 170 48 233 2 80 24 213 . . 379 193 502 Initial 193 | . . . . 101 . 26 48 26 2 . 24 9 . . 156 193 105 Average 65 | 2 49 . 92 19 14 45 44 69 . 29 22 61 . . 238 135 218 Influence Increases 4181 | 25 454 . 783 45 253 217 . 292 . 212 . 410 315 . 433 195 547 Destroy 0b10 Robot/C 860 | . 240 . 460 . 120 . . . . . . . . . 40 . . Destroy 0b10 Robot/NC 175 | 25 25 . 50 25 20 . . 30 . . . . . . . . . Destroy Leader 206 | . 48 . 134 . 14 . . . . . . . . . 10 . . Successful Hack 156 | . 42 . 7 . 8 37 . 14 . 17 . 20 . . 4 . 7 Disable Machine 285 | . 45 . 45 . 15 . . 180 . . . . . . . . . Destroy Structure 129 | . 24 . 42 20 1 . . 38 . . . . . . 4 . . Partial Spotted 135 | . . . . . . . . . . 30 . 15 . . 30 15 45 Lose Combat Pursuer 2235 | . 30 . 45 . 75 180 . 30 . 165 . 375 315 . 345 180 495 Influence Decreases 3689 | 25 454 . 522 306 194 138 100 323 7 142 56 221 186 84 312 376 243 Entered New Map 842 | . . . . 160 . 33 90 12 5 . 46 5 76 64 92 176 83 Time Decay 2003 | 25 309 . 392 136 166 94 10 161 2 72 10 126 100 10 150 120 120 Lost Part 481 | . 10 . 123 10 28 . . . . 10 . 90 10 10 70 80 40 Purge Threat 363 | . 135 . 7 . . 11 . 150 . 60 . . . . . . . Squads Dispatched 32 | . 1 . 5 1 1 3 . 1 . 4 . 4 . . 5 1 6 Investigation 8 | . . . . . 1 2 . . . . . 1 . . 2 . 2 Extermination 6 | . . . . . . . . 1 . 1 . . . . 2 1 1 Reinforcement 18 | . 1 . 5 1 . 1 . . . 3 . 3 . . 1 . 3 Assault . | . . . . . . . . . . . . . . . . . . Garrison . | . . . . . . . . . . . . . . . . . . Intercept . | . . . . . . . . . . . . . . . . . . Searches Triggered . | . . . . . . . . . . . . . . . . . . Construction Impeded 3 | . . . 2 1 . . . . . . . . . . . . . Haulers Reinforced . | . . . . . . . . . . . . . . . . . . Active Scanning Responses . | . . . . . . . . . . . . . . . . . . Cargo Convoy Interrupts . | . . . . . . . . . . . . . . . . . . Stealth | -11 -10 -10 -9 -9 -8 -7 -7 -7 -6 -5 -5 -5 -5 -5 -4 -3 -2 --------- Run | Yrd Mat Min Mat Min Mat Fac Was Fac Fac Fac Was Fac Upp Upp Fac Res Res Distress Signals 6 | . . . 2 . . . . . . . . . . . 1 . 3 Communications Jammed . | . . . . . . . . . . . . . . . . . . Distress Signals . | . . . . . . . . . . . . . . . . . . Times Spotted 298 | . 20 . 34 . 19 17 2 10 4 17 6 36 25 2 38 28 40 Peak Tracking Total 20 | . 6 . 6 . 11 12 2 6 4 7 6 12 14 2 13 20 14 Tactical Retreats 45 | . 1 . 3 . 3 2 . 2 . 4 . 7 6 . 7 4 6 Traps | -11 -10 -10 -9 -9 -8 -7 -7 -7 -6 -5 -5 -5 -5 -5 -4 -3 -2 ------- Run | Yrd Mat Min Mat Min Mat Fac Was Fac Fac Fac Was Fac Upp Upp Fac Res Res Traps Triggered 9 | . . . . . . 1 . 1 2 1 . . . . 2 2 . Indirectly . | . . . . . . . . . . . . . . . . . . Trap Hack Attempts . | . . . . . . . . . . . . . . . . . . Triggered . | . . . . . . . . . . . . . . . . . . Disarmed . | . . . . . . . . . . . . . . . . . . Reprogrammed . | . . . . . . . . . . . . . . . . . . Reused . | . . . . . . . . . . . . . . . . . . Traps Extracted . | . . . . . . . . . . . . . . . . . . Installed . | . . . . . . . . . . . . . . . . . . Triggered . | . . . . . . . . . . . . . . . . . . Machines | -11 -10 -10 -9 -9 -8 -7 -7 -7 -6 -5 -5 -5 -5 -5 -4 -3 -2 ---------- Run | Yrd Mat Min Mat Min Mat Fac Was Fac Fac Fac Was Fac Upp Upp Fac Res Res Machines Disabled 20 | . 4 . 3 . 1 . . 12 . . . . . . . . . Max in Single Turn 12 | . 1 . 1 . 1 . . 12 . . . . . . . . . Garrison Access 4 | . . . . . . . . . . 2 . 1 . . 1 . . Machines Repaired . | . . . . . . . . . . . . . . . . . . Machines Dismantled . | . . . . . . . . . . . . . . . . . . Machines Sabotaged . | . . . . . . . . . . . . . . . . . . Overloaded Fab Kills . | . . . . . . . . . . . . . . . . . . Hacking | -11 -10 -10 -9 -9 -8 -7 -7 -7 -6 -5 -5 -5 -5 -5 -4 -3 -2 --------- Run | Yrd Mat Min Mat Min Mat Fac Was Fac Fac Fac Was Fac Upp Upp Fac Res Res Machines Accessed 63 | . 9 1 2 . 7 7 . 5 2 10 . 6 . . 9 3 2 Terminals 41 | . 8 . 2 . 4 6 . 4 . 5 . 3 . . 6 1 2 Fabricators 4 | . . . . . . 1 . . . . . 1 . . 2 . . Repair Stations 3 | . 1 . . . . . . . 1 1 . . . . . . . Recycling Units 5 | . . . . . 1 . . 1 . 1 . 1 . . . 1 . Scanalyzers 4 | . . . . . 2 . . . 1 1 . . . . . . . Garrison Access 5 | . . . . . . . . . . 2 . 1 . . 1 1 . Total Hacks 158 | . 26 1 7 . 22 17 . 12 3 21 . 17 . . 23 4 5 Successful 93 | . 14 1 2 . 17 10 . 7 2 12 . 12 . . 14 1 1 Failed 63 | . 11 . 5 . 5 7 . 5 1 9 . 5 . . 8 3 4 Catastrophic 12 | . 1 . 1 . 1 1 . 1 . . . 1 . . 2 1 3 Database Lockouts 2 | . 1 . . . . . . . . . . . . . 1 . . Manual 104 | . 21 . 7 . 12 7 . 10 . 11 . 10 . . 20 2 4 Terminals 114 | . 24 . 7 . 11 15 . 10 . 12 . 11 . . 17 2 5 Fabricators 8 | . . . . . . 2 . . . . . 2 . . 4 . . Repair Stations 6 | . 2 . . . . . . . 2 2 . . . . . . . Recycling Units 9 | . . . . . 1 . . 2 . 2 . 3 . . . 1 . Scanalyzers 14 | . . . . . 10 . . . 1 3 . . . . . . . Garrison Access 6 | . . . . . . . . . . 2 . 1 . . 2 1 . Terminal Hacks 57 | . 12 1 2 . 7 8 . 6 . 4 . 7 . . 9 . 1 Record 11 | . 1 . . . . 3 . . . 1 . . . . 6 . . Part Schematic 2 | . 1 . . . . . . 1 . . . . . . . . . Open Door 1 | . . 1 . . . . . . . . . . . . . . . Level Access Points 6 | . . . . . 1 1 . 1 . 1 . . . . 1 . 1 Branch Access Points 5 | . 1 . 1 . 1 1 . 1 . . . . . . . . . Machine Index 1 | . . . . . . . . . . . . 1 . . . . . Terminal Index 4 | . 1 . . . 1 1 . . . 1 . . . . . . . Fabricator Index 1 | . . . . . . . . 1 . . . . . . . . . Alert Level 4 | . 1 . . . 1 . . 1 . . . 1 . . . . . Unreport Threat 9 | . 3 . 1 . 1 1 . 1 . 1 . 1 . . . . . Locate Traps 1 | . 1 . . . . . . . . . . . . . . . . Transport Status 1 | . 1 . . . . . . . . . . . . . . . . Recall Investigation 6 | . . . . . 1 1 . . . . . 2 . . 2 . . Recall Extermination 1 | . . . . . . . . . . . . 1 . . . . . Recall Reinforcements 1 | . . . . . . . . . . . . 1 . . . . . Hauler Manifests 2 | . 1 . . . 1 . . . . . . . . . . . . Zone Layout 1 | . 1 . . . . . . . . . . . . . . . . Fabricator Hacks 8 | . . . . . . 2 . . . . . 2 . . 4 . . Load Schematic 4 | . . . . . . 1 . . . . . 1 . . 2 . . Build 4 | . . . . . . 1 . . . . . 1 . . 2 . . Repair Station Hacks 4 | . 2 . . . . . . . 1 1 . . . . . . . Scan Component 3 | . 1 . . . . . . . 1 1 . . . . . . . Repair 1 | . 1 . . . . . . . . . . . . . . . . Recycling Unit Hacks 6 | . . . . . . . . 1 . 2 . 2 . . . 1 . Process 3 | . . . . . . . . . . 1 . 1 . . . 1 . Report Inventory 1 | . . . . . . . . 1 . . . . . . . . . Retrieve Matter 2 | . . . . . . . . . . 1 . 1 . . . . . Scanalyzer 14 | . . . . . 10 . . . 1 3 . . . . . . . Insert Component 8 | . . . . . 6 . . . 1 1 . . . . . . . Analyze 6 | . . . . . 4 . . . . 2 . . . . . . . Garrison Access Hacks 4 | . . . . . . . . . . 2 . 1 . . 1 . . Seal Access 4 | . . . . . . . . . . 2 . 1 . . 1 . . Unauthorized Hacks . | . . . . . . . . . . . . . . . . . . Terminals . | . . . . . . . . . . . . . . . . . . Fabricators . | . . . . . . . . . . . . . . . . . . Repair Stations . | . . . . . . . . . . . . . . . . . . Recycling Units . | . . . . . . . . . . . . . . . . . . Scanalyzers . | . . . . . . . . . . . . . . . . . . Garrison Access . | . . . . . . . . . . . . . . . . . . Data Cores Recovered 2 | . . . . . 1 . . . . . . . . . . . 1 Used . | . . . . . . . . . . . . . . . . . . Hacking Detections 55 | . 8 . 2 . 7 7 . 4 2 8 . 5 . . 8 2 2 Full Trace Events 7 | . . . . . . 2 . . . . . 1 . . 2 . 2 Feedback Events . | . . . . . . . . . . . . . . . . . . Feedback Blocked . | . . . . . . . . . . . . . . . . . . Robot Schematics Acquired . | . . . . . . . . . . . . . . . . . . Robots Built . | . . . . . . . . . . . . . . . . . . Authchips . | . . . . . . . . . . . . . . . . . . Time . | . . . . . . . . . . . . . . . . . . Total Robot Build Rating . | . . . . . . . . . . . . . . . . . . Part Schematics Acquired 6 | . 1 . . . 3 . . 1 . 1 . . . . . . . Parts Built 6 | . . . . . . 1 . . . . . 1 . . 4 . . Authchips . | . . . . . . . . . . . . . . . . . . Time 268 | . . . . . . 36 . . . . . 73 . . 159 . . Total Part Build Rating 30 | . . . . . . 3 . . . . . 3 . . 24 . . Parts Repaired 1 | . 1 . . . . . . . . . . . . . . . . Time 26 | . 26 . . . . . . . . . . . . . . . . Parts Recycled . | . . . . . . . . . . . . . . . . . . Recycled Matter 100 | . . . . . . . . . . 41 . 59 . . . . . Retrieved Matter 100 | . . . . . . . . . . 41 . 59 . . . . . Retrieved Components . | . . . . . . . . . . . . . . . . . . Parts Scanalyzed 5 | . . . . . 4 . . . . 1 . . . . . . . Part Schematics Acquired 4 | . . . . . 3 . . . . 1 . . . . . . . Parts Damaged 1 | . . . . . 1 . . . . . . . . . . . . Bothacking | -11 -10 -10 -9 -9 -8 -7 -7 -7 -6 -5 -5 -5 -5 -5 -4 -3 -2 ------------ Run | Yrd Mat Min Mat Min Mat Fac Was Fac Fac Fac Was Fac Upp Upp Fac Res Res Used RIF Installer . | . . . . . . . . . . . . . . . . . . Robots Hacked . | . . . . . . . . . . . . . . . . . . Non-combat . | . . . . . . . . . . . . . . . . . . Combat . | . . . . . . . . . . . . . . . . . . Robot Hacks Applied . | . . . . . . . . . . . . . . . . . . Relay Couplers Released . | . . . . . . . . . . . . . . . . . . Fabnet Peak Effective % . | . . . . . . . . . . . . . . . . . . Robots Rewired . | . . . . . . . . . . . . . . . . . . Allies Hacked . | . . . . . . . . . . . . . . . . . . Hacks Repelled . | . . . . . . . . . . . . . . . . . . Allies | -11 -10 -10 -9 -9 -8 -7 -7 -7 -6 -5 -5 -5 -5 -5 -4 -3 -2 -------- Run | Yrd Mat Min Mat Min Mat Fac Was Fac Fac Fac Was Fac Upp Upp Fac Res Res Total Allies 2 | . . . . 1 . . . . . . 1 . . . . . . Largest Group 1 | . . . . 1 1 . . . . . 1 . . . . . . Highest-Rated Group 31 | . . . . 31 31 . . . . . 31 . . . . . . Highest-Rated Ally 31 | . . . . 31 31 . . . . . 31 . . . . . . Total Orders 3 | . . . 3 . . . . . . . . . . . . . . EXPLORE 2 | . . . 2 . . . . . . . . . . . . . . RETURN 1 | . . . 1 . . . . . . . . . . . . . . Ally Attacks 7 | . . . . . 2 . . . . . 5 . . . . . . Total Damage 105 | . . . . . 42 . . . . . 63 . . . . . . Kills . | . . . . . . . . . . . . . . . . . . Allies Corrupted . | . . . . . . . . . . . . . . . . . . Allies Melted . | . . . . . . . . . . . . . . . . . . Intel | -11 -10 -10 -9 -9 -8 -7 -7 -7 -6 -5 -5 -5 -5 -5 -4 -3 -2 ------- Run | Yrd Mat Min Mat Min Mat Fac Was Fac Fac Fac Was Fac Upp Upp Fac Res Res Active Infowar (turns) 757 | . . . . . . 81 . . 114 182 22 179 179 . . . . Optics 419 | . . . . . . 81 . . 112 182 22 22 . . . . . Sensors 385 | . . . . . . . . . . 5 22 179 179 . . . . ECM 2 | . . . . . . . . . 2 . . . . . . . . Robot Analysis Total . | . . . . . . . . . . . . . . . . . . Derelict Logs Recovered 3 | . . . . 1 . . . . . . . . 2 . . . . Drone Launches 3 | . . . 3 . . . . . . . . . . . . . . Drone Recoveries 3 | . . . 3 . . . . . . . . . . . . . . Exploration | -11 -10 -10 -9 -9 -8 -7 -7 -7 -6 -5 -5 -5 -5 -5 -4 -3 -2 ------------- Run | Yrd Mat Min Mat Min Mat Fac Was Fac Fac Fac Was Fac Upp Upp Fac Res Res Turns Passed 6940 | 113 1233 250 1249 763 785 328 29 440 203 182 22 289 206 34 314 252 248 Spaces Moved 8692 | 50 669 149 384 230 463 581 78 773 645 677 80 824 775 125 982 668 539 Core 489 | 4 . . 26 76 3 . . 51 . . . 2 . . . 55 272 Treads 1127 | 46 669 149 263 . . . . . . . . . . . . . . Legs . | . . . . . . . . . . . . . . . . . . Wheels 624 | . . . 95 117 412 . . . . . . . . . . . . Hover . | . . . . . . . . . . . . . . . . . . Flight 6452 | . . . . 37 48 581 78 722 645 677 80 822 775 125 982 613 267 Fastest Speed 18 | 50 160 160 140 125 32 30 32 30 27 23 23 18 25 25 23 25 26 Average Speed 65 | 151 160 160 256 303 139 31 33 39 27 24 23 24 25 26 26 33 41 Slowest Speed 950 | 160 160 160 900 800 950 34 34 150 29 25 23 50 25 27 30 50 50 Overloaded Moves 76 | . . . . . . . . . . . . 23 . . . . 53 Propulsion Burnouts 1 | . . . . . . . . . . . . . . . . . 1 Robots Hopped 105 | . . . . . 5 4 . 17 3 14 . 17 4 . 25 11 5 Potential Cave-ins . | . . . . . . . . . . . . . . . . . . Cave-ins Triggered . | . . . . . . . . . . . . . . . . . . Exploration Rate (%) 40 | 4 94 40 44 64 36 17 62 25 25 27 79 24 82 22 31 27 23 Regions Visited 17 Branch Regions 4 Pre-discovered Areas 1 | . . . . 1 . . . . . . . . . . . . . Known Exits Taken 6 | . 1 . 1 . 1 . . 1 . . . . . 1 1 . . Unknown Exits Taken 7 | 1 . 1 . 1 . . . . 1 . . 1 1 . . 1 . Scrap Searched 2 | . . . . 1 . . . . . . . . . 1 . . . Spaces Dug 4 | . 4 . . . . . . . . . . . . . . . . Terrain Destroyed 128 | . 20 . 41 28 . . . 39 . . . . . . . . . Melee . | . . . . . . . . . . . . . . . . . . Projectile . | . . . . . . . . . . . . . . . . . . AOE 128 | . 20 . 41 28 . . . 39 . . . . . . . . . Terrain Rammed . | . . . . . . . . . . . . . . . . . . Walls Destroyed . | . . . . . . . . . . . . . . . . . . Machines Disabled . | . . . . . . . . . . . . . . . . . . Actions | -11 -10 -10 -9 -9 -8 -7 -7 -7 -6 -5 -5 -5 -5 -5 -4 -3 -2 --------- Run | Yrd Mat Min Mat Min Mat Fac Was Fac Fac Fac Was Fac Upp Upp Fac Res Res Total 9485 | 69 752 161 516 269 552 720 79 888 671 676 82 891 782 124 1006 688 559 Wait 448 | 6 11 12 17 7 31 128 . 99 3 . 1 63 12 . 25 15 18 Move 8475 | 49 668 148 383 229 453 573 77 740 638 649 79 789 766 124 935 646 529 Hop 97 | . . . . . 4 4 . 15 3 14 . 17 4 . 21 10 5 Pick Up 73 | . 11 1 8 1 9 4 . 9 4 4 2 5 . . 6 7 2 Fast Attach 37 | 5 6 . 4 3 1 4 1 2 2 . . 1 . . 7 1 . Attach 58 | . 4 . 13 . 11 4 . 1 2 6 . 7 . . 5 3 2 Detach 19 | . 5 . 3 3 3 . . . . . . 2 . . 3 . . Swap 17 | . 2 . 4 . 1 . . 4 . 2 . 3 . . 1 . . Drop 47 | . 3 . 5 . 8 2 1 11 5 1 . 4 . . 1 6 . Fire 197 | 9 42 . 79 26 31 1 . 7 . . . . . . 2 . . Melee . | . . . . . . . . . . . . . . . . . . Ram 3 | . . . . . . . . . . . . . . . . . 3 Kick . | . . . . . . . . . . . . . . . . . . Crush . | . . . . . . . . . . . . . . . . . . Escape Stasis 14 | . . . . . . . . . 14 . . . . . . . . Rewire . | . . . . . . . . . . . . . . . . . . Trap . | . . . . . . . . . . . . . . . . . . Miscellaneous . | . . . . . . . . . . . . . . . . . . Route ------- -11/Scrapyard -10/Materials (discovered 5 exits: *Mat x3 / *Min x2) -10/Mines -9/Materials (discovered 4 exits: *Mat / *Min x2 / *Sto) -9/Mines -8/Materials (discovered 3 exits: *Fac x3) -7/Factory (discovered 6 exits: *Fac x4 / Low x2) -7/Waste -7/Factory (discovered 6 exits: *Fac x4 / *Low x2) -6/Factory -5/Factory (discovered 4 exits: *Fac x4) -5/Waste -5/Factory -5/Upper Caves -5/Upper Caves -4/Factory (discovered 5 exits: *Res x4 / [*Upp]) -3/Research -2/Research (discovered 3 exits: Acc x3) History --------- Turn | Location | Event 16 | -11/Scrapyard | Discovered new exit (range 16) 114 | -11/Scrapyard | Entered Materials 127 | -10/Materials | Identified exit to Mines 305 | -10/Materials | Build established: Mutant 454 | -10/Materials | Core integrity fell below 50% 485 | -10/Materials | Destroyed 7 combat bots 566 | -10/Materials | Discovered new exit (range 12) 758 | -10/Materials | Repaired Lgt. Treads? 934 | -10/Materials | Discovered new exit (range 4) 1012 | -10/Materials | Central database locked down 1216 | -10/Materials | Discovered new exit (range 16) 1347 | -10/Materials | Entered Mines 1348 | -10/Mines | Assembled infested the area 1485 | -10/Mines | Found the Drone Emporium 1492 | -10/Mines | Found Prototype Device 1576 | -10/Mines | Discovered new exit (range 14) 1597 | -10/Mines | Entered Materials 1597 | -9/Materials | Evolved 2 slots: Utility x2 1597 | -9/Materials | Identified Sensor Drone Bay 1633 | -9/Materials | Discovered new exit (range 25) 1749 | -9/Materials | Identified exit to Mines 1749 | -9/Materials | Identified exit to Storage 2424 | -9/Materials | Lost 8 parts (1p3n1u3w) 2433 | -9/Materials | Core integrity fell below 50% 2500 | -9/Materials | Discovered new exit (range 15) 2778 | -9/Materials | Lost 3 parts (1p2w) 2846 | -9/Materials | Entered Mines 3562 | -9/Mines | Discovered new exit (range 7) 3565 | -9/Mines | Received a Mining Laser from a helpful Derelict 3609 | -9/Mines | Entered Materials 3609 | -8/Materials | Accompanied by 1 ally 3609 | -8/Materials | Evolved 2 slots: Utility x2 3725 | -8/Materials | Discovered new exit (range 10) 4130 | -8/Materials | Identified exit to Factory 4377 | -8/Materials | Core integrity fell below 50% 4394 | -8/Materials | Entered Factory 4394 | -7/Factory | Evolved 2 slots: Propulsion x2 4404 | -7/Factory | Discovered new exit (range 7) 4405 | -7/Factory | Lost 6 parts (1p1n3u1w) 4434 | -7/Factory | Build established: Hacker-Mutant 4507 | -7/Factory | Identified exit to Lower Caves 4507 | -7/Factory | Identified exit to Factory 4646 | -7/Factory | Fabricated Hacking Suite? 4722 | -7/Factory | Sucked down chute 4722 | -7/Factory | Entered Waste 4727 | -7/Waste | Spotted C-40 Crusher 4729 | -7/Waste | Spotted C-40 Crusher 4733 | -7/Waste | Spotted C-40 Crusher 4737 | -7/Waste | EMP discharged 4747 | -7/Waste | Spotted C-40 Crusher 4748 | -7/Waste | Discovered new exit (range 10) 4751 | -7/Waste | Entered Factory 5084 | -7/Factory | System corruption reached 10% 5191 | -7/Factory | Entered another Factory area 5191 | -6/Factory | Evolved 2 slots: Propulsion x1, Utility x1 5314 | -6/Factory | Build established: Hacker-Sprinter 5389 | -6/Factory | Discovered new exit (range 19) 5394 | -6/Factory | Entered another Factory area 5394 | -5/Factory | Evolved 2 slots: Propulsion x1, Utility x1 5524 | -5/Factory | Discovered new exit (range 15) 5554 | -5/Factory | Identified exit to Factory 5576 | -5/Factory | Manually triggered Chute Trap 5576 | -5/Factory | Sucked down chute 5576 | -5/Factory | Entered Waste 5577 | -5/Waste | Met a frightened Derelict 5581 | -5/Waste | Spotted C-40 Crusher 5585 | -5/Waste | Spotted C-40 Crusher 5585 | -5/Waste | Spotted C-40 Crusher 5588 | -5/Waste | Spotted C-40 Crusher 5590 | -5/Waste | Spotted C-40 Crusher 5594 | -5/Waste | Discovered new exit (range 14) 5594 | -5/Waste | Spotted C-40 Crusher 5598 | -5/Waste | Entered Factory 5748 | -5/Factory | Fabricated Hacking Suite? 5879 | -5/Factory | Discovered new exit (range 5) 5887 | -5/Factory | Entered Upper Caves 5893 | -5/Upper Caves | Lost 9 parts (1p4n2u2w) 5894 | -5/Upper Caves | Encountered a Warlord checkpoint 5955 | -5/Upper Caves | Learned location of 1 exit from Proximity Caves 5994 | -5/Upper Caves | Learned Factory interactive machine intel 6014 | -5/Upper Caves | Ambushed by wild Derelicts 6023 | -5/Upper Caves | Attracted the attention of an 0b10 checkpoint 6058 | -5/Upper Caves | Build established: Wizard-Sprinter 6092 | -5/Upper Caves | Discovered new exit (range 6) 6093 | -5/Upper Caves | Entered another Upper Caves area 6119 | -5/Upper Caves | Discovered exit to Factory (range 9) 6127 | -5/Upper Caves | Entered Factory 6127 | -4/Factory | Evolved 2 slots: Propulsion x1, Utility x1 6128 | -4/Factory | Loaded intel: 54 interactive machine locations 6238 | -4/Factory | Lost 3 parts (2n1u) 6285 | -4/Factory | Discovered new exit (range 9) 6302 | -4/Factory | Central database locked down 6313 | -4/Factory | Fabricated Field Propulsion Drive? 6336 | -4/Factory | Lost 3 parts (2n1u) 6338 | -4/Factory | Fabricated Field Propulsion Drive? 6339 | -4/Factory | Identified exit to Research 6441 | -4/Factory | Entered Research 6441 | -3/Research | Evolved 2 slots: Power x1, Utility x1 6657 | -3/Research | Core integrity fell below 50% 6669 | -3/Research | Spotted B-86 Titan 6680 | -3/Research | Core integrity fell below 20% 6686 | -3/Research | Discovered new exit (range 15) 6693 | -3/Research | Entered another Research area 6693 | -2/Research | Evolved 2 slots: Propulsion x1, Utility x1 6703 | -2/Research | Lost 4 parts (3n1u) 6836 | -2/Research | Identified exit to Access 6841 | -2/Research | Core integrity fell below 50% 6924 | -2/Research | Core integrity fell below 20% 6941 | -2/Research | Destroyed by H-81 Overseer with Heavy Linear Accelerator Last Messages --------------- 06907_ O-16 Technician sends out distress signal. 06909_ Slug penetrates O-16 Technician. 06909_ O-16 Technician destroyed. 06909_ ALERT: Suspicious intruders detected, dispatching Specialist reinforcements to area. 06909_ Acquired data core, extracted dynamic key. 06909_ Decrypted 2 local trap positions from data. 06910_ Slug penetrates U-05 Engineer. 06910_ Penetrated by Slug. 06911_ U-05 Engineer builds a Door. 06912_ Penetrated by Slug. 06912_ Slug penetrates Y-72 Warden. 06914_ Slug penetrates U-05 Engineer. 06914_ U-05 Engineer destroyed. 06919_ ALERT: Suspicious intruders detected, dispatching Specialist reinforcements to area. 06922_ System corrupted: Matter fused (-7). 06923_ Knocked back. 06937_ System corrupted: Matter fused (-8). 06937_ Knocked back. Map ----- +----------------------------------------------------+ | ?????????????????????????????????????????????????? | | ?????????????????????????????????????????????????? | | ?????????????????????????????????????????????????? | | ?????????????????????????????????????????????????? | | ?????????????????????????????????????????????????? | | ?????????????????????????????????????????????????? | | ?????????????????????????????????????????????????? | | ?????????????????????????????????????????????????? | | ?????????????????????????????????????????????????? | | ?????????????????????????????????????????????????? | | ???????????????????????????????###########???????? | | ???????????????????????????????# #???????? | | ???????????????????????????????# ! #???????? | | ??????????????####?????????????# #???????? | | ?????????????? ?????????????# #???????? | | ??????????????# #????????????#+###+#####???????? | | ??????????????# #????????????# #???????????? | | ??????????????# #???????###### #######?????? | | ??????????????# #???????# ] # #?????? | | ??????????????# +???????# # #?????? | | ??????????????# ######### # #?????? | | ??????????????# # #?????? | | ?????????????## # #?????? | | ?????????????+ % + #?????? | | ??????????????# ; #?????? | | ??????????????#t H @ # #?????? | | ?????????????## ;##########+######## #?????? | | ????????###+## #????????# ?????# #?????? | | ????????# %#????????# ???# #?????? | | ###?????+ #????????# #?# #?????? | | #?????# #????????# #?#######?????? | | #?????###### #????????# #?????????????? | | #??????????### ###????????# #?????????????? | | #????????????# #??????????########?????????????? | | #???#+#????### ###?????????????????????????????? | | ????# #????# #?????????????????????????????? | | ####### ###### #?????????????????????????????? | | #?????????????????????????????? | | # #?????????????????????????????? | | # #?????????????????????????????? | | # T ##?????????????????????????????? | | # #??????????????????????????????? | | # +??????????????????????????????? | | ####### #???????????????????????#+#+#### | | ??????# #???????????????????????# | | ??????#+## #???????????????????????# | | ?????????# #??????????############## | | ?????????# #??????????# # | | ?????????# #??????????# # | | ?????????# #??????????# " # | +----------------------------------------------------+ Best States ------------- Heat Dissipation 54 Energy Generation 21 Energy Capacity 375 Matter Stores 300 Matter Capacity 300 Sight Range 20 Robot Scan Range 15 Terrain Scan Density 10 Armor Coverage 675 Phase Shifting 5 Evasion (%) 69 Recoil Reduction 2 Offensive Hacking 64 Defensive Hacking 14 Item Schematics ----------------- Signal Interpreter | -10/Materials | Hacked Hacking Suite | -8/Materials | Scanalyzed Mni. Grenade Launcher | -8/Materials | Scanalyzed Mining Laser | -8/Materials | Scanalyzed Xenon Bombardment Thruster | -7/Factory | Hacked Field Propulsion Drive | -5/Factory | Scanalyzed Robot Schematics ------------------ None Fabricated ------------ Hacking Suite | x1 | -7/Factory Hacking Suite | x1 | -5/Factory Field Propulsion Drive | x2 | -4/Factory Field Propulsion Drive | x2 | -4/Factory Repaired ---------- Lgt. Treads | 19% | -10/Materials Alien Tech Used ----------------- None Achievements -------------- Below Can't Catch Me Cya! Dangerous Findings Hunted It Was An Accident, I Swear Prolific Hacker Serviceable Loadout Slippery One Challenges ------------ None Game ------ Seed AssembledDeflectorNanosword Manual? 0 Play Time 02:24:32 Cumulative 9.2 hours Start 2025.06.14 @ 20:49:53 End 2025.06.15 @ 09:02:44 Sessions 3 Manual Loads 0 Difficulty Rogue Special Mode None Game No. 10 Rogue 10 Adventurer 0 Explorer 0 Win Type - Total 0 Types 0/0/0/0/0/0/0/0/0/0 Lore% 3 Gallery% 10 Achievement% 18 Wizard Run 0 Options --------- Layout 0 ASCII 0 Keyboard 1 Movement Vi Keybinds 0 Fullscreen 1 Font 18/SmallcapsGlow Map View 76x50 Zoom Use 0% Tactical HUD 1 Map Filters NONE Filters NONE Steam 1 RUN: 454130c2-4088-4595-9450-96a3de5f6e64